[Event "*** Titled Tuesday Blitz"]
[Site "Chess.com"]
[Date "2021.04.20"]
[Round "4"]
[White "azikom"]
[Black "CrushingKings"]
[Result "1/2-1/2"]
[WhiteElo "2650"]
[BlackElo "2496"]
[TimeControl "180+1"]
[EndTime "10:39:04 PDT"]
[Termination "Game drawn by repetition"]

1. d4 {[%clk 0:02:59.7]} 1... Nf6 {[%clk 0:03:00.1]} 2. c4 {[%clk 0:02:58.4]}
2... g6 {[%clk 0:03:00]} 3. Nc3 {[%clk 0:02:58.2]} 3... Bg7 {[%clk 0:03:00.6]}
4. e4 {[%clk 0:02:58.8]} 4... d6 {[%clk 0:03:01.2]} 5. f3 {[%clk 0:02:59.3]}
5... Nbd7 {[%clk 0:03:01.2]} 6. Nge2 {[%clk 0:02:57.8]} 6... e5 {[%clk
0:03:00.7]} 7. Be3 {[%clk 0:02:57.2]} 7... O-O {[%clk 0:02:56.7]} 8. Qd2 {[%clk
0:02:57.3]} 8... Nh5 {[%clk 0:02:54.5]} 9. O-O-O {[%clk 0:02:56]} 9... a6 {[%clk
0:02:53.5]} 10. g4 {[%clk 0:02:50.6]} 10... Nf4 {[%clk 0:02:53.9]} 11. Nxf4
{[%clk 0:02:47.4]} 11... exf4 {[%clk 0:02:54.8]} 12. Bxf4 {[%clk 0:02:47.3]}
12... b5 {[%clk 0:02:55.7]} 13. Bh6 {[%clk 0:02:46]} 13... bxc4 {[%clk
0:02:48.4]} 14. Bxg7 {[%clk 0:02:40.5]} 14... Kxg7 {[%clk 0:02:49.3]} 15. h4
{[%clk 0:02:40.5]} 15... Nb6 {[%clk 0:02:42.1]} 16. h5 {[%clk 0:02:39.3]} 16...
g5 {[%clk 0:02:42.3]} 17. h6+ {[%clk 0:02:38.6]} 17... Kg8 {[%clk 0:02:39.6]}
18. d5 {[%clk 0:02:30]} 18... f6 {[%clk 0:02:22]} 19. Qd4 {[%clk 0:02:27.4]}
19... Nd7 {[%clk 0:02:16]} 20. Bxc4 {[%clk 0:02:25]} 20... Rb8 {[%clk
0:02:14.7]} 21. Be2 {[%clk 0:02:18.1]} 21... Ne5 {[%clk 0:02:12.4]} 22. Rd2
{[%clk 0:02:17.4]} 22... Bd7 {[%clk 0:02:06.8]} 23. Kb1 {[%clk 0:02:13.5]} 23...
a5 {[%clk 0:02:00.8]} 24. Rc1 {[%clk 0:01:56.7]} 24... Rb4 {[%clk 0:01:59.8]}
25. Qa7 {[%clk 0:01:53.9]} 25... Qb8 {[%clk 0:01:43.6]} 26. Qxb8 {[%clk
0:01:53]} 26... Rfxb8 {[%clk 0:01:44.5]} 27. a3 {[%clk 0:01:45.5]} 27... R4b7
{[%clk 0:01:36.7]} 28. Ka2 {[%clk 0:01:43.6]} 28... Kf7 {[%clk 0:01:37.1]} 29.
Rh1 {[%clk 0:01:21.8]} 29... Kg6 {[%clk 0:01:36.2]} 30. Rc2 {[%clk 0:00:55.3]}
30... Nf7 {[%clk 0:01:24.7]} 31. Ba6 {[%clk 0:00:42.7]} 31... Rb6 {[%clk
0:01:23.4]} 32. Bd3 {[%clk 0:00:41.9]} 32... Ne5 {[%clk 0:01:15.2]} 33. Be2
{[%clk 0:00:41.4]} 33... Nf7 {[%clk 0:01:12.2]} 34. Rhc1 {[%clk 0:00:40.7]}
34... Kxh6 {[%clk 0:01:05]} 35. Nd1 {[%clk 0:00:34.5]} 35... Ba4 {[%clk
0:01:04.8]} 36. Rd2 {[%clk 0:00:34.3]} 36... R6b7 {[%clk 0:00:54.7]} 37. Rc4
{[%clk 0:00:31.9]} 37... Bb3+ {[%clk 0:00:54.5]} 38. Ka1 {[%clk 0:00:30.9]}
38... Bxc4 {[%clk 0:00:55.1]} 39. Bxc4 {[%clk 0:00:30.8]} 39... Ne5 {[%clk
0:00:55.8]} 40. Be2 {[%clk 0:00:31.2]} 40... Kg6 {[%clk 0:00:56.4]} 41. Ne3
{[%clk 0:00:30.9]} 41... h5 {[%clk 0:00:56.4]} 42. gxh5+ {[%clk 0:00:30.6]}
42... Kf7 {[%clk 0:00:56.4]} 43. h6 {[%clk 0:00:30.2]} 43... Rb3 {[%clk
0:00:51.7]} 44. Nf5 {[%clk 0:00:29.3]} 44... Nxf3 {[%clk 0:00:50.8]} 45. Bxf3
{[%clk 0:00:29.3]} 45... Rxf3 {[%clk 0:00:51.6]} 46. Rc2 {[%clk 0:00:30]} 46...
Rb7 {[%clk 0:00:35]} 47. Rh2 {[%clk 0:00:29.3]} 47... Rb8 {[%clk 0:00:22.9]} 48.
Rc2 {[%clk 0:00:27.7]} 48... Rb7 {[%clk 0:00:23.1]} 49. Rh2 {[%clk 0:00:27.3]}
49... Rxf5 {[%clk 0:00:20.5]} 50. exf5 {[%clk 0:00:24.1]} 50... Kg8 {[%clk
0:00:21]} 51. h7+ {[%clk 0:00:19.4]} 51... Kh8 {[%clk 0:00:21.2]} 52. Rh6 {[%clk
0:00:19.9]} 52... Rb5 {[%clk 0:00:21.5]} 53. Rxf6 {[%clk 0:00:19.7]} 53... Rxd5
{[%clk 0:00:18.1]} 54. Rf7 {[%clk 0:00:19.4]} 54... c5 {[%clk 0:00:17.1]} 55. f6
{[%clk 0:00:19.2]} 55... Rf5 {[%clk 0:00:17.6]} 56. Kb1 {[%clk 0:00:18.3]} 56...
g4 {[%clk 0:00:17.7]} 57. Kc2 {[%clk 0:00:18.1]} 57... g3 {[%clk 0:00:17.3]} 58.
Rg7 {[%clk 0:00:17.8]} 58... Rxf6 {[%clk 0:00:16.4]} 59. Rxg3 {[%clk 0:00:18.3]}
59... Kxh7 {[%clk 0:00:16.8]} 60. Kc3 {[%clk 0:00:17.6]} 60... d5 {[%clk
0:00:17.3]} 61. Rg5 {[%clk 0:00:16.9]} 61... Rf3+ {[%clk 0:00:17.7]} 62. Kc2
{[%clk 0:00:16.8]} 62... Rf2+ {[%clk 0:00:16.8]} 63. Kc1 {[%clk 0:00:16.6]}
63... Rf1+ {[%clk 0:00:15.9]} 64. Kc2 {[%clk 0:00:16.6]} 64... Rf2+ {[%clk
0:00:16.4]} 65. Kc1 {[%clk 0:00:16.7]} 65... Rf1+ {[%clk 0:00:15.7]} 66. Kc2
{[%clk 0:00:16.6]} 66... Rf2+ {[%clk 0:00:14.9]} 1/2-1/2

[Event "*** Titled Tuesday Blitz"]
[Site "Chess.com"]
[Date "2021.04.20"]
[Round "4"]
[White "Vuk2000"]
[Black "CM_rui"]
[Result "0-1"]
[WhiteElo "2723"]
[BlackElo "2478"]
[TimeControl "180+1"]
[EndTime "10:39:05 PDT"]
[Termination "CM_rui won by checkmate"]

1. d4 {[%clk 0:03:00.9]} 1... Nf6 {[%clk 0:02:59.8]} 2. Bg5 {[%clk 0:03:01.3]}
2... e6 {[%clk 0:02:59.9]} 3. e4 {[%clk 0:03:01.2]} 3... Be7 {[%clk 0:02:59.3]}
4. e5 {[%clk 0:03:01]} 4... Nd5 {[%clk 0:02:59.7]} 5. Bxe7 {[%clk 0:03:00]} 5...
Nxe7 {[%clk 0:03:00.6]} 6. Nf3 {[%clk 0:02:59.8]} 6... d6 {[%clk 0:03:00.9]} 7.
exd6 {[%clk 0:03:00.7]} 7... cxd6 {[%clk 0:03:01.8]} 8. Bd3 {[%clk 0:03:00.7]}
8... b6 {[%clk 0:03:00.3]} 9. c3 {[%clk 0:03:00.5]} 9... Bb7 {[%clk 0:03:00.5]}
10. Nbd2 {[%clk 0:03:00.5]} 10... Ng6 {[%clk 0:02:58.3]} 11. O-O {[%clk
0:02:57.5]} 11... Nd7 {[%clk 0:02:56.8]} 12. Be4 {[%clk 0:02:51.5]} 12... Qc7
{[%clk 0:02:47.5]} 13. Qe2 {[%clk 0:02:50.7]} 13... Nf6 {[%clk 0:02:44.4]} 14.
Rfe1 {[%clk 0:02:35.9]} 14... Nxe4 {[%clk 0:02:42.7]} 15. Nxe4 {[%clk
0:02:35.9]} 15... O-O {[%clk 0:02:43.2]} 16. Qe3 {[%clk 0:02:31.8]} 16... Rad8
{[%clk 0:02:35.4]} 17. h4 {[%clk 0:02:30]} 17... h6 {[%clk 0:02:32.5]} 18. h5
{[%clk 0:02:22.7]} 18... Ne7 {[%clk 0:02:31.8]} 19. Qf4 {[%clk 0:02:20.5]} 19...
Kh7 {[%clk 0:02:02.8]} 20. Re3 {[%clk 0:01:31.3]} 20... Nd5 {[%clk 0:01:59.5]}
21. Qh4 {[%clk 0:01:11]} 21... Nxe3 {[%clk 0:01:55.4]} 22. fxe3 {[%clk
0:01:11.9]} 22... f5 {[%clk 0:01:43.2]} 23. Neg5+ {[%clk 0:01:04.3]} 23... hxg5
{[%clk 0:01:40.1]} 24. Nxg5+ {[%clk 0:01:05.2]} 24... Kg8 {[%clk 0:01:34.6]} 25.
Nxe6 {[%clk 0:00:59.1]} 25... Qc6 {[%clk 0:01:32.3]} 26. Qg5 {[%clk 0:00:49.1]}
26... Rd7 {[%clk 0:01:25.7]} 27. Nxf8 {[%clk 0:00:47.4]} 27... Kxf8 {[%clk
0:01:26.6]} 28. Rf1 {[%clk 0:00:38.6]} 28... Rf7 {[%clk 0:01:26.8]} 29. Rxf5
{[%clk 0:00:38.6]} 29... Rxf5 {[%clk 0:01:10.8]} 30. Qxf5+ {[%clk 0:00:38.5]}
30... Kg8 {[%clk 0:01:02.3]} 31. Qg5 {[%clk 0:00:38.4]} 31... Qe4 {[%clk
0:01:01.1]} 32. h6 {[%clk 0:00:34.8]} 32... g6 {[%clk 0:00:58.4]} 33. Kh2 {[%clk
0:00:32]} 33... Kh7 {[%clk 0:00:57.3]} 34. c4 {[%clk 0:00:25.6]} 34... d5 {[%clk
0:00:46.7]} 35. c5 {[%clk 0:00:20.6]} 35... bxc5 {[%clk 0:00:46.1]} 36. dxc5
{[%clk 0:00:21.5]} 36... d4 {[%clk 0:00:42.3]} 37. exd4 {[%clk 0:00:20.9]} 37...
Bd5 {[%clk 0:00:40.7]} 38. b4 {[%clk 0:00:10.7]} 38... Bxa2 {[%clk 0:00:34.5]}
39. b5 {[%clk 0:00:09.4]} 39... Bd5 {[%clk 0:00:23.1]} 40. c6 {[%clk 0:00:08.1]}
40... Qxd4 {[%clk 0:00:18.1]} 41. c7 {[%clk 0:00:07.2]} 41... Qc5 {[%clk
0:00:17.6]} 42. c8=Q {[%clk 0:00:03.1]} 42... Qxc8 {[%clk 0:00:15.1]} 43. Qxd5
{[%clk 0:00:03.6]} 43... Qb8+ {[%clk 0:00:14.7]} 44. g3 {[%clk 0:00:03.3]} 44...
Kxh6 {[%clk 0:00:14.8]} 45. Kh3 {[%clk 0:00:03.6]} 45... Qc8+ {[%clk 0:00:14.6]}
46. Kh4 {[%clk 0:00:03.5]} 46... Qc7 {[%clk 0:00:09.7]} 47. Qd2+ {[%clk
0:00:03.2]} 47... Kh7 {[%clk 0:00:09.5]} 48. Qg5 {[%clk 0:00:03.7]} 48... Qc4+
{[%clk 0:00:09.6]} 49. Kh3 {[%clk 0:00:03.7]} 49... Qf1+ {[%clk 0:00:08.9]} 50.
Kg4 {[%clk 0:00:04.2]} 50... Qe2+ {[%clk 0:00:08.4]} 51. Kf4 {[%clk 0:00:04.6]}
51... Qd2+ {[%clk 0:00:08.5]} 52. Kg4 {[%clk 0:00:05.1]} 52... Qd4+ {[%clk
0:00:08.1]} 53. Qf4 {[%clk 0:00:04.7]} 53... Qd7+ {[%clk 0:00:08.5]} 54. Kh4
{[%clk 0:00:04.2]} 54... Qxb5 {[%clk 0:00:08.1]} 55. Qf7+ {[%clk 0:00:04.2]}
55... Kh6 {[%clk 0:00:08.6]} 56. Qf8+ {[%clk 0:00:04.6]} 56... Kh7 {[%clk
0:00:09.1]} 57. Qe7+ {[%clk 0:00:05.5]} 57... Kh6 {[%clk 0:00:09.3]} 58. Qxa7
{[%clk 0:00:05.2]} 58... Qh5# {[%clk 0:00:08.9]} 0-1

[Event "*** Titled Tuesday Blitz"]
[Site "Chess.com"]
[Date "2021.04.20"]
[Round "4"]
[White "JakubPulpan"]
[Black "Sibelephant"]
[Result "1/2-1/2"]
[WhiteElo "2749"]
[BlackElo "3094"]
[TimeControl "180+1"]
[EndTime "10:39:08 PDT"]
[Termination "Game drawn - insufficient material"]

1. Nf3 {[%clk 0:03:00.9]} 1... b6 {[%clk 0:02:57]} 2. b3 {[%clk 0:02:54.8]} 2...
Bb7 {[%clk 0:02:57.1]} 3. Bb2 {[%clk 0:02:55.7]} 3... Nf6 {[%clk 0:02:57.1]} 4.
g3 {[%clk 0:02:54.8]} 4... g6 {[%clk 0:02:54.9]} 5. Bg2 {[%clk 0:02:55]} 5...
Bg7 {[%clk 0:02:55.3]} 6. O-O {[%clk 0:02:55.7]} 6... O-O {[%clk 0:02:55.6]} 7.
c4 {[%clk 0:02:55.2]} 7... c5 {[%clk 0:02:55.9]} 8. Nc3 {[%clk 0:02:54.8]} 8...
d6 {[%clk 0:02:43.2]} 9. d4 {[%clk 0:02:54.7]} 9... cxd4 {[%clk 0:02:43.5]} 10.
Qxd4 {[%clk 0:02:53]} 10... Ne4 {[%clk 0:02:40.5]} 11. Qe3 {[%clk 0:02:50.1]}
11... Nd7 {[%clk 0:02:35]} 12. Rab1 {[%clk 0:02:42.7]} 12... Nxc3 {[%clk
0:02:30.3]} 13. Bxc3 {[%clk 0:02:43.6]} 13... Bxc3 {[%clk 0:02:30.4]} 14. Qxc3
{[%clk 0:02:44.5]} 14... Rc8 {[%clk 0:02:30.3]} 15. Qe3 {[%clk 0:02:43.7]} 15...
Nf6 {[%clk 0:02:26.3]} 16. Rfd1 {[%clk 0:02:43.8]} 16... Rc5 {[%clk 0:02:24.4]}
17. a4 {[%clk 0:02:39.6]} 17... Qc7 {[%clk 0:02:19.7]} 18. Nd4 {[%clk
0:02:34.2]} 18... Bxg2 {[%clk 0:02:18.8]} 19. Kxg2 {[%clk 0:02:35.1]} 19... a6
{[%clk 0:02:05]} 20. Qf3 {[%clk 0:02:20.7]} 20... Rc8 {[%clk 0:01:28.1]} 21. Nc2
{[%clk 0:02:03.8]} 21... Rf5 {[%clk 0:01:25.3]} 22. Qd3 {[%clk 0:02:00.6]} 22...
Qb7+ {[%clk 0:01:16.9]} 23. f3 {[%clk 0:01:53]} 23... d5 {[%clk 0:01:03.1]} 24.
Ne3 {[%clk 0:01:37.7]} 24... dxc4 {[%clk 0:01:02.9]} 25. bxc4 {[%clk 0:01:35.8]}
25... Rfc5 {[%clk 0:00:48.7]} 26. Nd5 {[%clk 0:01:28.1]} 26... Nxd5 {[%clk
0:00:31.4]} 27. cxd5 {[%clk 0:01:29]} 27... b5 {[%clk 0:00:25.2]} 28. axb5
{[%clk 0:01:23.7]} 28... Rxb5 {[%clk 0:00:24.6]} 29. Ra1 {[%clk 0:00:58]} 29...
a5 {[%clk 0:00:17.7]} 30. Ra2 {[%clk 0:00:48.3]} 30... Ra8 {[%clk 0:00:14.7]}
31. Ra4 {[%clk 0:00:41.2]} 31... Rb4 {[%clk 0:00:14]} 32. Rda1 {[%clk
0:00:41.8]} 32... Rxa4 {[%clk 0:00:12.6]} 33. Rxa4 {[%clk 0:00:42.7]} 33... Qb6
{[%clk 0:00:10.4]} 34. Qc3 {[%clk 0:00:29.9]} 34... Qb5 {[%clk 0:00:09]} 35. Qc4
{[%clk 0:00:15.6]} 35... Qxc4 {[%clk 0:00:09.2]} 36. Rxc4 {[%clk 0:00:16.5]}
36... a4 {[%clk 0:00:09.8]} 37. Rc2 {[%clk 0:00:17.2]} 37... a3 {[%clk
0:00:10.3]} 38. Ra2 {[%clk 0:00:17.6]} 38... f5 {[%clk 0:00:11]} 39. e4 {[%clk
0:00:14.6]} 39... fxe4 {[%clk 0:00:11.3]} 40. fxe4 {[%clk 0:00:15.5]} 40... Kf7
{[%clk 0:00:11.9]} 41. e5 {[%clk 0:00:15.5]} 41... Ra4 {[%clk 0:00:08]} 42. Kf3
{[%clk 0:00:15.3]} 42... g5 {[%clk 0:00:08.4]} 43. Ke3 {[%clk 0:00:12.6]} 43...
Kg6 {[%clk 0:00:08.8]} 44. Kd3 {[%clk 0:00:09.6]} 44... Kf5 {[%clk 0:00:08.1]}
45. d6 {[%clk 0:00:09.7]} 45... exd6 {[%clk 0:00:07.4]} 46. exd6 {[%clk
0:00:10.6]} 46... Ke6 {[%clk 0:00:07.8]} 47. Kc3 {[%clk 0:00:11.2]} 47... Kxd6
{[%clk 0:00:08.1]} 48. Kb3 {[%clk 0:00:11.8]} 48... Ra7 {[%clk 0:00:06.1]} 49.
Rd2+ {[%clk 0:00:12]} 49... Ke5 {[%clk 0:00:06]} 50. Ka2 {[%clk 0:00:12.4]}
50... Ke4 {[%clk 0:00:05.4]} 51. Rf2 {[%clk 0:00:07.1]} 51... h5 {[%clk
0:00:04.1]} 52. Rf6 {[%clk 0:00:06.5]} 52... Ra5 {[%clk 0:00:03.8]} 53. h3
{[%clk 0:00:04.5]} 53... Ke3 {[%clk 0:00:03]} 54. Rf7 {[%clk 0:00:03.1]} 54...
g4 {[%clk 0:00:02.8]} 55. hxg4 {[%clk 0:00:02.4]} 55... hxg4 {[%clk 0:00:03.7]}
56. Rf4 {[%clk 0:00:03.1]} 56... Rg5 {[%clk 0:00:03.9]} 57. Kxa3 {[%clk
0:00:03.6]} 57... Ke2 {[%clk 0:00:04.3]} 58. Kb3 {[%clk 0:00:04]} 58... Rd5
{[%clk 0:00:02.9]} 59. Rxg4 {[%clk 0:00:03.7]} 59... Kf3 {[%clk 0:00:03.1]} 60.
Rg8 {[%clk 0:00:04.2]} 60... Rd4 {[%clk 0:00:03.4]} 61. Kc3 {[%clk 0:00:04.7]}
61... Rg4 {[%clk 0:00:04.1]} 62. Rxg4 {[%clk 0:00:05]} 62... Kxg4 {[%clk
0:00:05]} 63. Kd4 {[%clk 0:00:05.9]} 63... Kxg3 {[%clk 0:00:05.8]} 1/2-1/2

[Event "*** Titled Tuesday Blitz"]
[Site "Chess.com"]
[Date "2021.04.20"]
[Round "4"]
[White "quizden37"]
[Black "Nozdrachev_Leonid"]
[Result "0-1"]
[WhiteElo "2794"]
[BlackElo "2557"]
[TimeControl "180+1"]
[EndTime "10:39:12 PDT"]
[Termination "Nozdrachev_Leonid won by resignation"]

1. e4 {[%clk 0:03:00.9]} 1... c6 {[%clk 0:02:58.7]} 2. d4 {[%clk 0:03:01]} 2...
d5 {[%clk 0:02:58.3]} 3. Nd2 {[%clk 0:03:01.9]} 3... dxe4 {[%clk 0:02:57.7]} 4.
Nxe4 {[%clk 0:03:02.8]} 4... Bf5 {[%clk 0:02:57.5]} 5. Ng3 {[%clk 0:03:03.3]}
5... Bg6 {[%clk 0:02:57.5]} 6. h4 {[%clk 0:03:04.2]} 6... h6 {[%clk 0:02:57.2]}
7. Nf3 {[%clk 0:03:05.1]} 7... Nd7 {[%clk 0:02:56.2]} 8. h5 {[%clk 0:03:05.7]}
8... Bh7 {[%clk 0:02:56]} 9. Bd3 {[%clk 0:03:06.6]} 9... Bxd3 {[%clk 0:02:54.2]}
10. Qxd3 {[%clk 0:03:07.5]} 10... Ngf6 {[%clk 0:02:54.3]} 11. Bd2 {[%clk
0:03:08.2]} 11... e6 {[%clk 0:02:54.3]} 12. O-O-O {[%clk 0:03:08.2]} 12... Be7
{[%clk 0:02:53.2]} 13. Kb1 {[%clk 0:03:08.2]} 13... O-O {[%clk 0:02:51.4]} 14.
Bc1 {[%clk 0:03:03.8]} 14... c5 {[%clk 0:02:42.3]} 15. Ne4 {[%clk 0:02:59.2]}
15... Nxe4 {[%clk 0:02:29.8]} 16. Qxe4 {[%clk 0:03:00.1]} 16... cxd4 {[%clk
0:02:24.9]} 17. Nxd4 {[%clk 0:02:39.4]} 17... Qb6 {[%clk 0:02:07]} 18. Nf5
{[%clk 0:02:18.6]} 18... exf5 {[%clk 0:01:53.9]} 19. Qxe7 {[%clk 0:02:19.5]}
19... Nf6 {[%clk 0:01:36.2]} 20. Rd6 {[%clk 0:02:17.1]} 20... Rfe8 {[%clk
0:01:25.6]} 21. Rxb6 {[%clk 0:01:55.6]} 21... Rxe7 {[%clk 0:01:24.9]} 22. Rb5
{[%clk 0:01:56.5]} 22... Re2 {[%clk 0:01:12]} 23. Rxf5 {[%clk 0:01:53.4]} 23...
Ne4 {[%clk 0:01:08.1]} 24. Rd1 {[%clk 0:01:36]} 24... Rc8 {[%clk 0:00:44.9]} 25.
f3 {[%clk 0:01:27.2]} 25... Ng3 {[%clk 0:00:28.7]} 26. Rb5 {[%clk 0:01:26.5]}
26... Rexc2 {[%clk 0:00:20.6]} 27. Rxb7 {[%clk 0:01:21.1]} 27... Rxg2 {[%clk
0:00:20.2]} 28. Rxa7 {[%clk 0:01:15.4]} 28... Nxh5 {[%clk 0:00:20.3]} 29. a4
{[%clk 0:01:15.2]} 29... Nf6 {[%clk 0:00:19.1]} 30. a5 {[%clk 0:01:15.4]} 30...
h5 {[%clk 0:00:19.4]} 31. Rb7 {[%clk 0:01:11]} 31... Ra8 {[%clk 0:00:18]} 32. b4
{[%clk 0:01:10.3]} 32... Rf2 {[%clk 0:00:16.3]} 33. Rd6 {[%clk 0:00:53.9]} 33...
Rxf3 {[%clk 0:00:15.6]} 34. a6 {[%clk 0:00:54.3]} 34... h4 {[%clk 0:00:14.9]}
35. a7 {[%clk 0:00:54]} 35... Kh7 {[%clk 0:00:13.5]} 36. Ra6 {[%clk 0:00:47.7]}
36... h3 {[%clk 0:00:09.8]} 37. Ra2 {[%clk 0:00:35.6]} 37... Ne4 {[%clk
0:00:09.3]} 38. Rc2 {[%clk 0:00:23.2]} 38... Nd6 {[%clk 0:00:05.9]} 39. Rd7
{[%clk 0:00:15]} 39... Nb5 {[%clk 0:00:05.7]} 40. Rc5 {[%clk 0:00:15.4]} 40...
Rxa7 {[%clk 0:00:04.6]} 41. Rxa7 {[%clk 0:00:13.9]} 41... Nxa7 {[%clk
0:00:05.5]} 42. b5 {[%clk 0:00:14.5]} 42... Rb3+ {[%clk 0:00:04.4]} 43. Kc2
{[%clk 0:00:14.5]} 43... Rxb5 {[%clk 0:00:05.3]} 44. Rc3 {[%clk 0:00:14.4]}
44... Rh5 {[%clk 0:00:05]} 45. Bf4 {[%clk 0:00:14.6]} 45... Nb5 {[%clk
0:00:05.3]} 46. Rc8 {[%clk 0:00:11.8]} 46... f6 {[%clk 0:00:05.6]} 47. Bh2
{[%clk 0:00:11.7]} 47... Nd4+ {[%clk 0:00:05.7]} 48. Kd3 {[%clk 0:00:12.2]}
48... Nf3 {[%clk 0:00:06.6]} 49. Bg3 {[%clk 0:00:12.8]} 49... h2 {[%clk
0:00:06.3]} 50. Bxh2 {[%clk 0:00:13.4]} 50... Nxh2 {[%clk 0:00:06.4]} 51. Ke3
{[%clk 0:00:14.3]} 51... Ng4+ {[%clk 0:00:07.2]} 52. Kf4 {[%clk 0:00:15.2]}
52... Ne5 {[%clk 0:00:07.9]} 53. Ra8 {[%clk 0:00:13.3]} 53... Rg5 {[%clk
0:00:08.4]} 54. Ra7 {[%clk 0:00:12.7]} 54... Kg6 {[%clk 0:00:09.3]} 55. Ke4
{[%clk 0:00:12.6]} 55... Rf5 {[%clk 0:00:10.2]} 56. Rb7 {[%clk 0:00:11.9]} 56...
Rg5 {[%clk 0:00:11.1]} 57. Kf4 {[%clk 0:00:12.4]} 57... Rh5 {[%clk 0:00:10.7]}
58. Ke4 {[%clk 0:00:12.4]} 58... Kh6 {[%clk 0:00:10.7]} 59. Kf4 {[%clk 0:00:13]}
59... Rh4+ {[%clk 0:00:10.9]} 60. Kf5 {[%clk 0:00:12.9]} 60... Rh2 {[%clk
0:00:08.4]} 61. Rb8 {[%clk 0:00:13.1]} 61... Rf2+ {[%clk 0:00:08.4]} 62. Ke4
{[%clk 0:00:13.6]} 62... Kg6 {[%clk 0:00:08.8]} 63. Ke3 {[%clk 0:00:14.1]} 63...
Rf1 {[%clk 0:00:09.1]} 64. Ke2 {[%clk 0:00:14.5]} 64... Rf5 {[%clk 0:00:09.6]}
65. Ke3 {[%clk 0:00:15.4]} 65... Rg5 {[%clk 0:00:10.1]} 66. Kf4 {[%clk
0:00:15.7]} 66... Rg4+ {[%clk 0:00:09.4]} 67. Ke3 {[%clk 0:00:16.6]} 67... Kf5
{[%clk 0:00:09.9]} 68. Rb5 {[%clk 0:00:16]} 68... g5 {[%clk 0:00:10.4]} 69. Kf2
{[%clk 0:00:16.3]} 69... Re4 {[%clk 0:00:11.3]} 70. Rb8 {[%clk 0:00:16.1]} 70...
Rf4+ {[%clk 0:00:12.2]} 71. Kg3 {[%clk 0:00:16]} 71... Rf3+ {[%clk 0:00:12.2]}
72. Kg2 {[%clk 0:00:16.5]} 72... Ra3 {[%clk 0:00:12]} 0-1

[Event "*** Titled Tuesday Blitz"]
[Site "Chess.com"]
[Date "2021.04.20"]
[Round "4"]
[White "4empechement"]
[Black "Kildepiotr"]
[Result "0-1"]
[WhiteElo "2480"]
[BlackElo "2650"]
[TimeControl "180+1"]
[EndTime "10:39:24 PDT"]
[Termination "Kildepiotr won by resignation"]

1. e4 {[%clk 0:03:00.9]} 1... g6 {[%clk 0:02:54.9]} 2. d4 {[%clk 0:03:00.2]}
2... Bg7 {[%clk 0:02:55.3]} 3. Nc3 {[%clk 0:02:58.5]} 3... c6 {[%clk 0:02:55.6]}
4. g3 {[%clk 0:02:55.1]} 4... d6 {[%clk 0:02:55.5]} 5. Bg2 {[%clk 0:02:54.3]}
5... Nf6 {[%clk 0:02:55.3]} 6. a4 {[%clk 0:02:52.9]} 6... O-O {[%clk 0:02:55.5]}
7. Nge2 {[%clk 0:02:52.3]} 7... Qc7 {[%clk 0:02:54.8]} 8. h3 {[%clk 0:02:52.1]}
8... b6 {[%clk 0:02:52.3]} 9. O-O {[%clk 0:02:49.2]} 9... Bb7 {[%clk 0:02:51.9]}
10. Re1 {[%clk 0:02:47.5]} 10... e5 {[%clk 0:02:51.7]} 11. Be3 {[%clk 0:02:45]}
11... a6 {[%clk 0:02:50.4]} 12. Qd2 {[%clk 0:02:41.5]} 12... Nbd7 {[%clk
0:02:42.3]} 13. Rad1 {[%clk 0:02:40]} 13... b5 {[%clk 0:02:42.2]} 14. axb5
{[%clk 0:02:37.6]} 14... cxb5 {[%clk 0:02:37.9]} 15. dxe5 {[%clk 0:02:11.9]}
15... dxe5 {[%clk 0:02:35.8]} 16. Qd6 {[%clk 0:02:01.1]} 16... Rac8 {[%clk
0:02:34.1]} 17. b4 {[%clk 0:01:26.2]} 17... Rfe8 {[%clk 0:02:18.5]} 18. Rd2
{[%clk 0:01:22.4]} 18... Qxd6 {[%clk 0:02:09.5]} 19. Rxd6 {[%clk 0:01:21.9]}
19... Bf8 {[%clk 0:02:10]} 20. Rd3 {[%clk 0:01:13.8]} 20... Bxb4 {[%clk
0:02:10]} 21. Rb1 {[%clk 0:01:12.7]} 21... Bc5 {[%clk 0:02:08.1]} 22. Bxc5
{[%clk 0:00:50.7]} 22... Nxc5 {[%clk 0:02:06.5]} 23. Re3 {[%clk 0:00:50.7]}
23... Red8 {[%clk 0:02:02.1]} 24. Kf1 {[%clk 0:00:50.6]} 24... Rd2 {[%clk
0:02:01.1]} 25. Rb2 {[%clk 0:00:46.8]} 25... Rcd8 {[%clk 0:01:47.6]} 26. f4
{[%clk 0:00:45.9]} 26... Rd1+ {[%clk 0:01:27.2]} 27. Kf2 {[%clk 0:00:39.3]}
27... R1d2 {[%clk 0:01:14.4]} 28. Ke1 {[%clk 0:00:26.8]} 28... R2d7 {[%clk
0:01:08.7]} 29. fxe5 {[%clk 0:00:22.8]} 29... Nh5 {[%clk 0:01:04.8]} 30. g4
{[%clk 0:00:20.3]} 30... Ng7 {[%clk 0:01:04.4]} 31. Nf4 {[%clk 0:00:19.7]} 31...
Re7 {[%clk 0:00:58.2]} 32. Nfd5 {[%clk 0:00:19.5]} 32... Rxe5 {[%clk 0:00:56]}
33. Kf2 {[%clk 0:00:19.7]} 33... Nge6 {[%clk 0:00:51.7]} 34. Rb1 {[%clk
0:00:19.5]} 34... Kg7 {[%clk 0:00:47.8]} 35. Rd1 {[%clk 0:00:19.5]} 35... Ng5
{[%clk 0:00:44.4]} 36. h4 {[%clk 0:00:18.7]} 36... Ngxe4+ {[%clk 0:00:38.4]} 37.
Nxe4 {[%clk 0:00:14.6]} 37... Nxe4+ {[%clk 0:00:33.8]} 38. Bxe4 {[%clk
0:00:07.4]} 38... Bxd5 {[%clk 0:00:32.4]} 39. Bg2 {[%clk 0:00:07.3]} 39... Kf6
{[%clk 0:00:21.8]} 40. g5+ {[%clk 0:00:07.1]} 40... Ke6 {[%clk 0:00:22.1]} 41.
Red3 {[%clk 0:00:06.3]} 41... b4 {[%clk 0:00:19.3]} 42. Rd4 {[%clk 0:00:05.9]}
42... a5 {[%clk 0:00:19.1]} 43. Ra1 {[%clk 0:00:05.6]} 43... Rd6 {[%clk
0:00:16.8]} 44. Rxa5 {[%clk 0:00:04.7]} 44... Bxg2 {[%clk 0:00:17]} 45. Rxe5+
{[%clk 0:00:04.5]} 45... Kxe5 {[%clk 0:00:17.2]} 46. Rxd6 {[%clk 0:00:04.5]}
46... Kxd6 {[%clk 0:00:18.1]} 47. Kxg2 {[%clk 0:00:04.5]} 47... Ke5 {[%clk
0:00:18.6]} 48. Kf3 {[%clk 0:00:04.8]} 48... Kd4 {[%clk 0:00:17]} 49. Ke2 {[%clk
0:00:04.6]} 49... Ke4 {[%clk 0:00:17.4]} 50. Kd2 {[%clk 0:00:04.5]} 50... Kf4
{[%clk 0:00:17.6]} 51. Kd3 {[%clk 0:00:04.8]} 51... Kg4 {[%clk 0:00:16.9]} 52.
Kc4 {[%clk 0:00:05.7]} 52... Kxh4 {[%clk 0:00:17.3]} 53. Kxb4 {[%clk 0:00:06.2]}
53... Kxg5 {[%clk 0:00:17.7]} 54. c4 {[%clk 0:00:06.8]} 54... h5 {[%clk
0:00:17.8]} 55. c5 {[%clk 0:00:06.8]} 55... Kf6 {[%clk 0:00:17.2]} 56. Kb5
{[%clk 0:00:06.9]} 56... h4 {[%clk 0:00:17.3]} 57. c6 {[%clk 0:00:07.1]} 57...
Ke7 {[%clk 0:00:17.4]} 58. Kb6 {[%clk 0:00:07.2]} 58... h3 {[%clk 0:00:17.6]}
59. c7 {[%clk 0:00:07.3]} 59... h2 {[%clk 0:00:18.2]} 60. c8=Q {[%clk
0:00:07.5]} 60... h1=Q {[%clk 0:00:18.4]} 61. Qc5+ {[%clk 0:00:07.8]} 61... Kf6
{[%clk 0:00:18]} 62. Qd4+ {[%clk 0:00:07.9]} 62... Kf5 {[%clk 0:00:18.5]} 63.
Qd7+ {[%clk 0:00:07]} 63... Kg5 {[%clk 0:00:18.3]} 64. Qe7+ {[%clk 0:00:07.1]}
64... Kh6 {[%clk 0:00:17.5]} 65. Qf8+ {[%clk 0:00:06.5]} 65... Kg5 {[%clk
0:00:17.8]} 66. Qe7+ {[%clk 0:00:06.6]} 66... f6 {[%clk 0:00:18.2]} 67. Qe3+
{[%clk 0:00:05.9]} 67... Kh5 {[%clk 0:00:18.7]} 68. Qe2+ {[%clk 0:00:05.8]}
68... Kh6 {[%clk 0:00:19.2]} 69. Qe3+ {[%clk 0:00:05.8]} 69... g5 {[%clk
0:00:19.4]} 70. Qe7 {[%clk 0:00:05.3]} 70... Qb1+ {[%clk 0:00:18.5]} 71. Kc7
{[%clk 0:00:04.8]} 71... Qh7 {[%clk 0:00:17.9]} 0-1